bitfinex/quotes_ETHUSD_20240810
["timestamp","ask_amount","ask_price","bid_price","bid_amount"]
[1723320240911,0.04354695,2605.7,2605.6,2.5931]
[1723320241444,3.07786,2605.8,2605.6,2.5931]
[1723320241733,0.04329866,2605.7,2605.6,2.5931]
[1723320242100,1.91887,2605.7,2605.6,2.5931]
[1723320242299,1.96097852,2605.7,2605.6,2.5931]
[1723320242496,0.04210852,2605.7,2605.6,2.5931]
[1723320242896,3.07781,2605.8,2605.6,2.5931]
[1723320243135,0.04205845,2605.7,2605.6,2.5931]
[1723320243513,3.07781,2605.8,2605.6,2.5931]
[1723320243722,0.04190701,2605.7,2605.6,2.5931]
[1723320244170,1.91887,2605.7,2605.6,2.5931]
[1723320244357,0.04190304,2605.7,2605.6,2.5931]
[1723320244725,1.91881,2605.8,2605.6,2.5931]
[1723320244924,2.784,2606.3,2604.9,0.09767977]
[1723320244925,0.04325626,2605.7,2604.9,0.09767977]
[1723320245135,1.91909,2605.4,2605.2,2.5931]
[1723320245652,1.91926,2605.2,2604.9,2.69077977]
[1723320246010,0.04129717,2605.1,2604.9,2.69077977]
[1723320246411,3.83825,2605.4,2604.9,2.69077977]
[1723320246612,0.04136901,2605.3,2604.9,2.69077977]
[1723320246915,1.96053901,2605.3,2604.9,2.69077977]
[1723320247912,0.04136901,2605.3,2604.9,2.69077977]
[1723320248309,1.91907,2605.5,2604.9,2.69077977]
[1723320248513,0.04117816,2605.2,2604.9,2.69077977]
[1723320248749,1.91907,2605.5,2604.9,4.61019977]
[1723320248948,0.04111107,2605.1,2605.0,1.9961409]
[1723320249133,9.2188,2605.8,2605.2,1.91917]
[1723320249449,0.04160017,2605.7,2605.3,2.7595]
[1723320249655,1.9188,2605.8,2605.3,3.227367]
[1723320249824,0.04152494,2605.7,2605.3,3.227367]
[1723320250025,1.91892,2605.7,2605.3,2.7595]
[1723320250358,0.04143686,2605.6,2605.3,2.7595]
[1723320251017,1.91906,2605.5,2605.3,2.7595]
[1723320251218,0.04130531,2605.4,2605.3,2.7595]
[1723320252043,1.91874,2605.9,2605.3,2.7595]
[1723320252229,0.04165761,2605.8,2605.4,2.7595]
[1723320253039,0.04165761,2605.8,2605.4,4.67857]
[1723320253240,0.04165761,2605.8,2605.5,2.7595]
[1723320253431,1.91873,2605.9,2605.5,2.7595]
[1723320253627,0.04166284,2605.8,2605.5,2.7595]
[1723320254019,1.91887,2605.7,2605.5,2.7595]
[1723320254454,0.0415313,2605.6,2605.5,2.7595]
[1723320255843,1.91906,2605.5,2605.0,2.6718]
[1723320256156,0.04135514,2605.4,2605.0,3.14068998]
[1723320256953,0.04135514,2605.4,2605.0,5.06003998]
[1723320257160,0.04135514,2605.4,2605.2,2.6718]
[1723320257531,3.83781,2605.7,2605.2,2.6718]
[1723320257731,0.04126705,2605.3,2605.2,2.6718]
[1723320257936,1.91906,2605.5,2605.2,2.6718]
[1723320258158,0.04057933,2605.3,2605.2,2.6718]
[1723320258362,1.91916,2605.3,2605.0,2.6718]
[1723320258659,0.04018002,2605.3,2605.0,2.6718]
[1723320263260,1.91902,2605.5,2605.0,2.6718]
[1723320263461,0.03907411,2605.4,2605.0,2.6718]
[1723320265461,1.95817411,2605.4,2605.0,2.6718]
[1723320265843,3.11817411,2605.4,2605.0,2.6718]
[1723320266038,3.62189352,2605.4,2605.0,2.6718]
[1723320267631,1.91931,2605.1,2605.0,2.6718]
[1723320267830,1.91925,2605.2,2605.0,2.6718]
[1723320268057,1.19896824,2605.1,2605.0,2.6718]
[1723320269061,0.03896824,2605.1,2605.0,2.6718]
[1723320269263,1.16,2605.5,2605.0,2.94874798]
[1723320269445,1.16,2605.5,2605.0,2.6718]
[1723320269644,0.03895169,2605.4,2605.0,2.6718]
[1723320270867,0.03895169,2605.4,2604.9,0.09767977]
[1723320271166,1.16,2605.1,2605.0,2.7995]
[1723320271368,1.95808169,2605.4,2605.0,2.7995]
[1723320271369,1.16,2605.3,2605.0,2.7995]
[1723320271868,0.03867539,2605.2,2605.0,2.7995]
[1723320272045,1.16,2605.3,2605.0,2.7995]
[1723320272231,0.03865036,2605.2,2605.0,2.7995]
[1723320272432,1.16,2605.3,2605.0,2.7995]
[1723320272634,0.03862534,2605.2,2605.0,2.7995]
[1723320272875,1.16,2605.3,2605.0,2.7995]
[1723320273045,0.03862534,2605.2,2605.0,2.7995]
[1723320273246,1.16,2605.3,2605.0,2.7995]
[1723320273445,0.03860031,2605.2,2605.0,2.7995]
[1723320273647,1.16,2605.3,2605.0,2.7995]
[1723320273846,0.03862532,2605.2,2605.0,2.7995]
[1723320274067,1.16,2605.3,2605.0,2.7995]
[1723320274270,0.0385372,2605.1,2605.0,2.7995]
[1723320274638,1.16,2605.3,2605.0,2.7995]
[1723320274974,0.03860029,2605.2,2605.0,2.7995]
[1723320275374,1.16,2605.3,2605.0,2.7995]
[1723320275873,0.03860027,2605.2,2605.0,2.7995]
[1723320276038,1.16,2605.3,2605.0,2.7995]
[1723320276234,0.03860027,2605.2,2605.0,2.7995]
[1723320276451,1.16,2605.3,2605.0,2.7995]
[1723320276650,0.03860027,2605.2,2605.0,2.7995]
[1723320276978,1.16,2605.3,2605.0,2.7995]
[1723320277174,0.03838705,2605.1,2605.0,2.7995]
[1723320277534,0.03841207,2605.1,2605.0,3.28115798]
[1723320277681,1.16,2605.3,2605.0,3.28115798]
[1723320277981,0.03850019,2605.2,2605.0,2.7995]
[1723320278390,1.16,2605.3,2605.0,2.7995]
[1723320278539,0.03841207,2605.1,2605.0,2.7995]
[1723320278742,1.16,2605.6,2605.1,2.657]
[1723320278936,1.16,2605.6,2605.3,2.657]
[1723320279178,0.03878822,2605.5,2605.3,2.657]
[1723320281889,7.3,2605.7,2605.4,1.91909]
[1723320282188,0.03919376,2605.6,2605.5,2.657]
[1723320282508,1.16,2605.6,2605.5,2.657]
[1723320282666,1.19919376,2605.6,2605.5,2.657]
[1723320285281,0.03919376,2605.6,2605.5,2.657]
[1723320285653,1.16,2605.8,2605.5,2.657]
[1723320285851,0.03952525,2605.7,2605.5,2.657]
[1723320286073,1.16,2605.8,2605.5,2.657]
[1723320286311,0.03950231,2605.7,2605.5,2.657]
[1723320286668,1.16,2605.8,2605.5,2.657]
[1723320286887,0.03950231,2605.7,2605.5,2.657]
[1723320287108,1.16,2605.8,2605.5,2.657]
[1723320287309,0.03943719,2605.6,2605.5,2.657]
[1723320287515,1.16,2605.8,2605.5,2.657]
[1723320287692,0.03943719,2605.6,2605.5,2.657]
[1723320287885,1.16,2605.8,2605.5,2.657]
[1723320288083,0.03950231,2605.7,2605.5,2.657]
[1723320288395,1.16,2605.8,2605.5,2.657]
[1723320288597,0.03934541,2605.6,2605.5,2.657]
[1723320288818,3.0788,2605.8,2605.5,2.657]
[1723320288984,0.03934541,2605.6,2605.5,2.657]
[1723320289321,0.0393454,2605.6,2605.5,2.657]
[1723320290197,1.1993454,2605.6,2605.5,2.657]
[1723320291813,0.0393454,2605.6,2605.5,2.657]
[1723320292119,1.1993454,2605.6,2605.5,2.657]
[1723320292887,3.1182854,2605.6,2605.5,2.657]
[1723320293203,1.1993454,2605.6,2605.5,2.657]
[1723320294623,1.1993454,2605.6,2605.0,2.7376]
[1723320294624,1.91911,2605.4,2605.0,2.7376]
[1723320294786,3.07911,2605.4,2605.0,2.7376]
[1723320294989,0.03914442,2605.3,2605.0,2.7376]
[1723320296744,1.95831442,2605.3,2605.0,2.7376]
[1723320296925,0.03914442,2605.3,2605.0,2.7376]
[1723320299144,3.87753442,2605.3,2605.0,2.7376]
[1723320299314,3.87755442,2605.3,2605.0,2.7376]
[1723320299515,1.95832442,2605.3,2605.0,2.7376]
[1723320300202,0.03914442,2605.3,2605.0,2.7376]
[1723320300598,3.07905,2605.5,2605.0,2.7376]
[1723320300840,0.03894267,2605.2,2605.0,2.7376]
[1723320301040,3.07905,2605.5,2605.0,2.7376]
[1723320301217,0.0387953,2605.1,2605.0,2.7376]
[1723320301419,1.91913,2605.4,2605.0,2.7376]
[1723320301909,0.03901477,2605.3,2605.0,2.7376]
[1723320302433,3.07905,2605.5,2605.0,2.7376]
[1723320302744,4.99812,2605.5,2605.0,2.7376]
[1723320302946,0.03910286,2605.4,2605.0,2.7376]
[1723320304365,0.03910286,2605.4,2605.0,5.32438998]
[1723320304563,0.03910286,2605.4,2605.1,1.91926]
[1723320304763,0.03910286,2605.4,2605.2,2.81436017]
[1723320304971,3.07901,2605.5,2605.2,2.7376]
[1723320305142,1.95813702,2605.3,2605.2,2.7376]
[1723320305340,3.07916,2605.3,2605.2,2.7376]
[1723320305563,3.07916,2605.3,2605.0,2.7376]
[1723320305564,1.91932,2605.1,2605.0,2.7376]
[1723320305872,3.07932,2605.1,2605.0,2.7376]
[1723320306178,3.11810421,2605.1,2605.0,2.7376]
[1723320309933,3.11810421,2605.1,2604.9,0.09767977]
[1723320309934,1.91938,2605.0,2604.9,0.09767977]
[1723320310469,1.95806584,2605.0,2604.9,0.09767977]
[1723320311795,3.87744584,2605.0,2604.9,0.09767977]
[1723320314508,1.95806584,2605.0,2604.9,2.73997977]
[1723320316171,2.51218177,2605.0,2604.9,2.73997977]
[1723320318504,1.95806584,2605.0,2604.9,2.73997977]
[1723320320112,0.03868584,2605.0,2604.9,2.73997977]
[1723320320678,1.16,2605.2,2604.9,2.73997977]
[1723320320869,0.03858757,2605.0,2604.9,2.73997977]
[1723320321271,0.03861052,2605.0,2604.9,2.73997977]
[1723320321966,1.16,2605.2,2604.9,2.73997977]
[1723320322171,0.03858757,2605.0,2604.9,2.73997977]
[1723320322682,0.03858757,2605.0,2604.9,3.20593575]
[1723320322903,0.03858757,2605.0,2604.9,5.12538575]
[1723320323088,1.91899,2605.6,2605.0,2.6423]
[1723320323627,1.91899,2605.6,2605.0,2.71906654]
[1723320324529,1.16,2605.5,2605.0,2.6423]
[1723320325222,1.16,2605.3,2605.0,2.6423]
[1723320325392,3.07923,2605.3,2605.0,2.6423]
[1723320325585,1.16,2605.3,2605.0,2.6423]
[1723320326202,1.91913,2605.4,2605.0,2.6423]
[1723320327032,7.3,2605.7,2605.1,2.6423]
[1723320327241,1.16,2605.7,2605.1,2.6423]
[1723320327397,3.07893,2605.7,2605.1,2.6423]
[1723320327593,3.07892,2605.7,2605.1,2.6423]
[1723320329030,1.16,2605.5,2605.1,2.6423]
[1723320329395,1.16,2605.5,2605.2,2.6209]
[1723320329598,1.16,2605.5,2605.2,3.1215103]
[1723320330444,0.03905383,2605.4,2605.2,3.1215103]
[1723320331332,0.03905383,2605.4,2605.3,4.54006]
[1723320331535,0.03905383,2605.4,2605.3,2.6209]
[1723320332098,0.11153677,2605.4,2605.3,2.6209]
[1723320334441,2.03062677,2605.4,2605.3,2.6209]
[1723320334612,2.54158545,2605.4,2605.3,2.6209]
[1723320336343,2.54158545,2605.4,2605.0,2.7909]
[1723320336344,1.91925,2605.2,2605.0,2.7909]
[1723320336497,3.07925,2605.2,2605.0,2.7909]
[1723320336701,0.10987807,2605.1,2605.0,2.7909]
[1723320338936,0.1099003,2605.1,2605.0,2.7909]
[1723320339244,3.07909,2605.4,2605.0,2.7909]
[1723320339397,0.10983301,2605.1,2605.0,2.7909]
[1723320339595,3.07909,2605.4,2605.0,2.7909]
[1723320339842,0.10985524,2605.1,2605.0,2.7909]
[1723320339996,3.07909,2605.4,2605.0,2.7909]
[1723320340201,0.10985524,2605.1,2605.0,2.7909]
[1723320340541,3.07909,2605.4,2605.0,2.7909]
[1723320340542,1.91924,2605.2,2605.0,2.7909]
[1723320340698,0.10983301,2605.1,2605.0,2.7909]
[1723320342810,2.02914301,2605.1,2605.0,2.7909]
[1723320343807,0.10983301,2605.1,2605.0,2.7909]
[1723320360051,3.07912,2605.4,2605.0,2.7909]
[1723320360307,0.10883052,2605.1,2605.0,2.7909]
[1723320360599,3.07912,2605.4,2605.0,2.7909]
[1723320360806,0.10880829,2605.1,2605.0,2.7909]
[1723320361282,0.10883052,2605.1,2605.0,2.7909]
[1723320361483,1.91925,2605.2,2605.0,2.7909]
[1723320361670,0.10880829,2605.1,2605.0,2.7909]
[1723320362867,3.07912,2605.4,2605.0,2.7909]
[1723320363074,1.16,2605.8,2605.1,2.3228008]
[1723320363278,1.16,2605.8,2605.4,2.2826]
[1723320363463,10.37865,2606.0,2605.5,2.2826]
[1723320363794,4.99735,2606.0,2605.5,2.2826]
[1723320363957,1.16,2605.8,2605.5,2.2826]
[1723320366604,1.91852,2606.2,2605.5,2.2826]
[1723320366815,1.16,2606.2,2605.8,4.20133]
[1723320367110,19.49,2606.3,2605.9,2.2826]
[1723320367111,7.3,2606.3,2605.9,2.2826]
[1723320367305,20.93,2606.4,2605.9,2.2826]
[1723320367512,20.93,2606.4,2605.9,2.35933816]
[1723320368000,1.16,2606.4,2606.0,0.42780682]
[1723320368160,1.16,2606.4,2606.1,2.2826]
[1723320368873,3.07821,2606.6,2606.1,2.2826]
[1723320369184,1.16,2606.6,2606.1,2.82224011]
[1723320369593,3.07809,2606.8,2606.3,2.2633]
[1723320370161,3.07809,2606.8,2606.3,4.18172]
[1723320370362,1.16,2606.8,2606.4,2.2633]
[1723320370698,1.91828,2606.5,2606.4,2.2633]
[1723320370872,2.417934,2606.5,2606.4,2.2633]
[1723320375288,1.91828,2606.5,2606.4,2.2633]
[1723320375614,2.02357866,2606.5,2606.4,2.2633]
[1723320375761,0.10529866,2606.5,2606.4,2.2633]
[1723320376203,2.02357866,2606.5,2606.4,2.2633]
[1723320376506,3.94185866,2606.5,2606.4,2.2633]
[1723320376806,4.45204453,2606.5,2606.4,2.2633]
[1723320381104,24.22204453,2606.5,2606.4,2.2633]
[1723320383524,0.10529866,2606.5,2606.4,3.4233]
[1723320383732,0.40038064,2607.0,2606.9,4.32078]
[1723320383883,3.0774,2607.7,2607.1,2.4028]
[1723320384081,1.16,2607.3,2607.1,2.4028]
[1723320384514,3.07769,2607.3,2607.1,2.4028]
[1723320384720,1.16,2607.3,2607.1,2.4028]
[1723320385120,3.0777,2607.3,2607.1,2.4028]
[1723320386212,1.16,2607.3,2607.1,2.4028]
[1723320386832,1.16,2607.3,2606.8,2.4028]
[1723320386833,1.91776,2607.2,2606.8,2.4028]
[1723320387029,1.16,2606.9,2606.8,2.4028]
[1723320387508,1.16,2607.3,2606.8,2.4028]
[1723320388026,1.16,2607.3,2606.9,2.4028]
[1723320389104,1.16,2607.3,2606.9,2.834893]
[1723320389332,1.16,2607.3,2606.9,2.350063]
[1723320389517,1.15851858,2607.3,2607.0,2.3638]
[1723320391300,0.08504964,2607.2,2607.0,2.3638]
[1723320391522,1.15851858,2607.3,2607.0,2.3638]
[1723320391735,0.0850154,2607.1,2607.0,2.3638]
[1723320392239,1.15851858,2607.3,2607.0,2.3638]
[1723320392422,1.16,2607.1,2607.0,2.3638]
[1723320392607,1.2450154,2607.1,2607.0,2.3638]
[1723320394615,0.0850154,2607.1,2607.0,2.3638]
[1723320394813,1.16,2607.3,2607.0,2.3638]
[1723320395337,0.08510059,2607.2,2607.0,2.3638]
[1723320395522,1.16,2607.3,2607.0,2.3638]
[1723320395726,0.2,2608.6,2607.0,2.3638]
[1723320395727,0.0850154,2607.1,2607.0,6.19962]
[1723320395900,1.16,2607.9,2607.3,1.91765]
[1723320396100,1.16,2607.9,2607.5,2.285]
[1723320397312,4.16,2607.9,2607.5,2.285]
[1723320397512,4.16,2607.9,2607.5,2.705261]
[1723320397513,1.16,2607.9,2607.5,2.705261]
[1723320397790,1.91723,2608.0,2607.5,2.705261]
[1723320398403,1.91704,2608.2,2607.5,2.705261]
[1723320398605,1.91691,2608.4,2607.7,1.91738]
[1723320398830,1.91691,2608.4,2607.9,2.285]
[1723320399219,3.83385,2608.4,2607.9,2.285]
[1723320399742,1.91691,2608.4,2607.9,2.285]
[1723320399930,1.91695,2608.3,2607.9,2.285]
[1723320400114,3.0,2608.3,2607.9,2.285]
[1723320400318,1.91691,2608.4,2607.9,2.285]
[1723320400718,1.91676,2608.6,2608.0,2.285]
[1723320401865,1.91661,2608.8,2608.2,1.91701]
[1723320402163,1.91661,2608.8,2608.3,2.285]
[1723320402868,4.69546,2609.0,2608.4,4.20185]
[1723320402869,1.91646,2609.0,2608.4,4.20185]
[1723320403081,1.91629,2609.2,2608.6,2.285]
[1723320403630,1.91617,2609.4,2608.7,2.285]
[1723320403864,0.60279633,2609.8,2608.8,2.285]
[1723320404079,1.9159,2609.8,2609.2,2.285]
[1723320404942,0.383163,2609.8,2609.2,2.285]
[1723320405325,0.383163,2609.8,2608.0,5.779]
[1723320405326,1.91643,2609.1,2608.9,2.285]
[1723320405472,1.91644,2609.0,2608.9,2.285]
[1723320405685,2.00255942,2609.0,2608.9,2.285]
[1723320407157,0.08611942,2609.0,2608.9,2.285]
[1723320407466,1.9163,2609.2,2608.9,2.285]
[1723320407668,0.08700948,2609.0,2608.9,2.285]
[1723320407873,1.9163,2609.2,2608.9,2.285]
[1723320408076,0.08623842,2609.0,2608.9,2.285]
[1723320408244,1.91635,2609.2,2608.9,2.285]
[1723320408447,3.0,2609.3,2608.9,2.285]
[1723320408635,0.08640864,2609.2,2608.9,2.285]
[1723320408834,1.91627,2609.3,2608.9,2.285]
[1723320409075,0.08656811,2609.2,2608.9,2.285]
[1723320409279,1.91627,2609.3,2608.9,2.285]
[1723320409483,0.0871684,2609.1,2608.9,2.285]
[1723320409776,1.91629,2609.2,2608.9,2.285]
[1723320410143,0.0871684,2609.1,2608.9,2.285]
[1723320410986,1.91644,2609.0,2608.9,2.285]
[1723320411344,0.0871684,2609.1,2608.9,2.285]
[1723320411554,0.08708331,2609.0,2608.9,2.285]
[1723320411755,1.9163,2609.2,2608.9,2.285]
[1723320411964,0.08708331,2609.0,2608.9,2.285]
[1723320412458,1.9163,2609.2,2608.9,2.285]
[1723320412977,0.08653319,2609.1,2608.9,2.285]
[1723320414058,2.00290319,2609.1,2608.9,2.285]
[1723320414556,0.08653319,2609.1,2608.9,2.285]
[1723320414940,2.00290319,2609.1,2608.9,2.285]
[1723320416078,1.91644,2609.0,2608.9,2.285]
[1723320416280,2.0035677,2609.0,2608.9,2.285]
[1723320416443,0.0871277,2609.0,2608.9,2.285]
[1723320416647,1.91644,2609.0,2608.9,2.285]
[1723320416844,2.299722,2609.0,2608.9,2.285]
[1723320417048,4.30242448,2609.0,2608.9,2.285]
[1723320417249,1.91679,2608.6,2607.9,1.91724]
[1723320417472,0.46954448,2609.0,2607.9,1.91724]
[1723320417473,1.91685,2608.5,2607.9,1.91722]
[1723320417700,2.00377121,2608.5,2607.9,1.91722]
[1723320417989,2.00377121,2608.5,2608.0,2.3839]
[1723320418883,1.91688,2608.4,2608.0,2.3839]
[1723320419062,2.00256746,2608.4,2608.0,2.3839]
[1723320419381,0.08568746,2608.4,2608.0,2.3839]
[1723320420101,2.00258746,2608.4,2608.0,2.3839]
[1723320420391,0.08568746,2608.4,2608.0,2.3839]
[1723320420574,2.00257746,2608.4,2608.0,2.3839]
[1723320420778,1.9171,2608.1,2608.0,2.3839]
[1723320421284,2.00240296,2608.1,2608.0,2.3839]
[1723320423356,0.08530296,2608.1,2608.0,2.3839]
[1723320423565,3.83385,2608.4,2608.0,2.3839]
[1723320423762,0.08494624,2608.1,2608.0,2.3839]
[1723320423980,1.91691,2608.4,2608.0,2.3839]
[1723320424179,0.08496662,2608.1,2608.0,2.3839]
[1723320424409,1.91691,2608.4,2608.0,2.3839]
[1723320424562,0.08496278,2608.1,2608.0,2.3839]
[1723320424763,1.91691,2608.4,2608.0,2.3839]
[1723320424988,0.08493856,2608.1,2608.0,2.3839]
[1723320425261,0.08495894,2608.1,2608.0,2.3839]
[1723320425461,1.91691,2608.4,2608.0,2.3839]
[1723320425661,0.08512546,2608.3,2608.0,2.3839]
[1723320426069,0.08512546,2608.3,2608.2,2.3839]
[1723320426284,1.91677,2608.6,2608.2,2.3839]
[1723320426489,0.08631843,2608.3,2608.2,2.3839]
[1723320426701,1.91677,2608.6,2608.2,2.3839]
[1723320426886,0.08540985,2608.3,2608.2,2.3839]
[1723320427204,1.91677,2608.6,2608.2,2.876186]
[1723320427371,0.08540601,2608.3,2608.2,2.3839]
[1723320427562,1.91677,2608.6,2608.2,2.3839]
[1723320427758,0.08653852,2608.3,2608.2,2.3839]
[1723320428006,1.91677,2608.6,2608.2,2.3839]
[1723320428158,0.08653852,2608.3,2608.2,2.814002]
[1723320428365,2.299762,2609.0,2608.2,2.3839]
[1723320428562,2.299762,2609.0,2608.4,2.3839]
[1723320428760,1.91656,2608.9,2608.4,2.3839]
[1723320433611,1.91663,2608.8,2608.4,2.3839]
[1723320433905,1.91679,2608.6,2608.4,2.3839]
[1723320434106,1.91681,2608.5,2608.4,2.3839]
[1723320435479,2.00261722,2608.5,2608.4,2.3839]
[1723320436723,3.91942722,2608.5,2608.4,2.3839]
[1723320436892,2.00261722,2608.5,2608.4,2.3839]
[1723320437491,0.08580722,2608.5,2608.4,2.3839]
[1723320437700,4.91662,2608.8,2608.4,2.3839]
[1723320438019,0.08566441,2608.5,2608.4,2.3839]
[1723320438176,4.91662,2608.8,2608.4,2.3839]
[1723320438177,1.91662,2608.8,2608.4,2.62229]
[1723320438381,0.08566441,2608.5,2608.4,2.62229]
[1723320438581,1.91652,2608.9,2608.4,2.62229]
[1723320438927,1.9166,2608.8,2608.4,2.3839]
[1723320439121,2.00251983,2608.8,2608.4,2.3839]
[1723320439327,1.91666,2608.7,2608.4,2.3839]
[1723320439528,2.0024947,2608.7,2608.4,2.3839]
[1723320439980,1.91679,2608.6,2608.4,2.3839]
[1723320440184,1.91681,2608.5,2608.4,2.3839]
[1723320440417,0.08566441,2608.5,2608.4,2.3839]
[1723320441188,2.00247441,2608.5,2608.4,2.3839]
[1723320442898,0.08566441,2608.5,2608.4,2.3839]
[1723320443223,1.91667,2608.7,2608.4,2.3839]
[1723320443432,0.08561598,2608.5,2608.4,2.3839]
[1723320443625,1.91667,2608.7,2608.4,2.3839]
[1723320443786,0.08680413,2608.5,2608.4,2.3839]
[1723320443991,1.91667,2608.7,2608.4,2.3839]
[1723320444511,0.08688923,2608.6,2608.4,2.3839]
[1723320445591,0.08688923,2608.6,2608.4,2.813991]
[1723320445902,0.08558856,2608.5,2608.4,2.813991]
[1723320446084,1.91659,2608.8,2608.4,2.813991]
[1723320446289,0.08576124,2608.7,2608.4,2.813991]
[1723320446504,9.2165,2609.0,2608.4,2.813991]
[1723320446712,0.08569647,2608.6,2608.5,2.2848]
[1723320447032,1.91653,2608.9,2608.5,2.2848]
[1723320447228,0.08572875,2608.6,2608.5,2.2848]
[1723320447428,1.91653,2608.9,2608.5,2.2848]
[1723320447725,1.9167,2608.7,2608.5,2.2848]
[1723320447935,1.91673,2608.6,2608.5,2.2848]
[1723320448107,2.00253937,2608.6,2608.5,2.2848]
[1723320450525,0.08580937,2608.6,2608.5,2.2848]
[1723320450936,2.00253937,2608.6,2608.5,2.2848]
[1723320452329,0.08580937,2608.6,2608.5,2.2848]
[1723320454530,2.00253937,2608.6,2608.5,2.2848]
[1723320455740,0.08580937,2608.6,2608.5,2.2848]
[1723320461740,1.24280937,2608.6,2608.5,2.2848]
[1723320466762,0.08580937,2608.6,2608.5,2.51328]
[1723320466925,3.07354,2608.9,2608.5,2.51328]
[1723320467131,0.08586379,2608.6,2608.5,2.2848]
[1723320467461,4.99011,2608.9,2608.5,2.2848]
[1723320467639,0.08586379,2608.6,2608.5,2.2848]
[1723320467834,3.07354,2608.9,2608.5,2.2848]
[1723320468066,0.08586379,2608.6,2608.5,2.2848]
[1723320468235,3.07354,2608.9,2608.5,2.2848]
[1723320468439,0.0844688,2608.6,2608.5,2.2848]
[1723320468645,3.07354,2608.9,2608.5,2.704975]
[1723320468966,3.07354,2608.9,2608.5,2.2848]
[1723320469198,1.157,2608.7,2608.5,2.2848]
[1723320469626,0.08515375,2608.6,2608.5,2.2848]
[1723320475171,0.08383853,2608.6,2608.5,2.2848]
[1723320475370,3.07354,2608.9,2608.5,2.2848]
[1723320475567,0.08515375,2608.6,2608.5,2.2848]
[1723320475745,3.07354,2608.9,2608.5,2.2848]
[1723320475950,0.08513155,2608.6,2608.5,2.2848]
[1723320476274,3.07354,2608.9,2608.5,2.2848]
[1723320476730,0.08530173,2608.8,2608.5,2.2848]
[1723320479969,2.00190173,2608.8,2608.5,2.2848]
[1723320480752,1.157,2608.7,2608.5,2.2848]
[1723320481068,1.24074028,2608.7,2608.5,2.2848]
[1723320482080,0.08374028,2608.7,2608.6,6.13256]
[1723320482286,0.08374028,2608.7,2608.6,6.20921037]
[1723320482442,8.457,2609.3,2608.9,2.2991]
[1723320482639,3.07324,2609.3,2608.9,2.2991]
[1723320483238,3.07342,2609.1,2608.9,2.2991]
[1723320483441,1.91644,2609.0,2608.9,2.2991]
[1723320484985,1.91644,2609.0,2608.1,1.157]
[1723320484986,1.91672,2608.7,2608.1,2.2991]
[1723320485275,3.07378,2608.6,2608.1,2.2991]
[1723320487383,1.157,2608.6,2608.1,2.2991]
[1723320487684,1.157,2608.6,2608.2,2.2991]
[1723320488055,1.157,2608.8,2608.3,2.2991]
[1723320488250,1.157,2608.8,2608.2,1.91702]
[1723320488251,8.457,2609.0,2608.5,2.2991]
[1723320488467,1.157,2608.8,2608.5,2.2991]
[1723320489186,3.07363,2608.8,2608.5,2.2991]
[1723320490682,1.157,2608.8,2608.5,2.2991]
[1723320490883,1.157,2608.8,2608.5,2.720704]
[1723320492579,1.91657,2608.9,2608.5,2.720704]
[1723320492999,1.157,2609.0,2608.5,4.637504]
[1723320493149,3.07345,2609.0,2608.6,2.3712]
[1723320493774,1.157,2609.0,2608.6,2.3712]
[1723320493982,3.07344,2609.0,2608.6,2.3712]
[1723320495462,0.08506271,2608.9,2608.6,2.3712]
[1723320496487,0.08506271,2608.9,2608.6,4.7588974]
[1723320496651,0.08506271,2608.9,2608.7,2.3952]
[1723320500106,0.08506271,2608.9,2608.6,2.3876974]
[1723320500107,0.08506271,2608.9,2608.8,4.38844848]
[1723320500305,0.08506271,2608.9,2608.8,6.30503848]
[1723320500534,3.07295,2609.7,2609.2,2.3952]
[1723320500820,0.0856669,2609.6,2609.2,2.3952]
[1723320501598,0.0856669,2609.6,2609.3,2.3952]
[1723320503885,0.0856669,2609.6,2609.3,2.47184146]
[1723320505628,0.0856669,2609.6,2609.5,2.3952]
[1723320506126,3.07278,2609.9,2609.5,2.3952]
[1723320506286,0.08465631,2609.6,2609.5,2.3952]
[1723320506483,3.07295,2609.7,2609.5,2.3952]
[1723320506711,2.0006321,2609.6,2609.5,2.3952]
[1723320507631,1.91617,2609.4,2608.8,2.3952]
[1723320507926,1.157,2609.2,2608.8,2.3952]
[1723320508098,3.0733,2609.2,2608.8,2.826381]
[1723320508280,0.08534286,2609.1,2608.8,2.826381]
[1723320510391,0.08534286,2609.1,2608.8,2.347761]
[1723320510598,3.07317,2609.4,2608.9,2.441]
[1723320510924,0.08433606,2609.3,2609.0,2.441]
[1723320511293,10.37304,2609.6,2609.1,2.441]
[1723320511927,0.08575924,2609.5,2609.1,2.441]
[1723320512134,2.00184924,2609.5,2609.1,2.441]
[1723320512802,0.08575924,2609.5,2609.1,2.441]
[1723320513846,2.00183924,2609.5,2609.1,2.441]
[1723320514428,1.91629,2609.2,2609.1,2.441]
[1723320514630,2.0004816,2609.2,2609.1,2.441]
[1723320516033,0.0841916,2609.2,2609.1,2.441]
[1723320516194,1.91624,2609.3,2609.1,2.441]
[1723320516395,0.08423235,2609.2,2609.1,2.441]
[1723320516698,1.91624,2609.3,2609.1,2.441]
[1723320516891,0.08417122,2609.2,2609.1,2.441]
[1723320517335,1.91624,2609.3,2609.1,2.441]
[1723320517529,0.08425272,2609.2,2609.1,2.441]
[1723320517834,1.91624,2609.3,2609.1,2.441]
[1723320518251,0.08422467,2609.2,2609.1,2.441]
[1723320518883,0.08416354,2609.2,2609.1,2.441]
[1723320519382,1.91624,2609.3,2609.1,2.441]
[1723320519684,0.08416354,2609.2,2609.1,2.441]
[1723320520073,1.91624,2609.3,2609.1,2.441]